lending/lending_fUSD_20250516
["ID","MTS","AMOUNT","RATE_DAILY","PERIOD"]
[361276386,1747414248951,-400.0,0.00016438,2]
[361276387,1747414248961,-566.69,0.00016438,2]
[361276388,1747414248971,-647.8,0.00016438,2]
[361276389,1747414248980,-400.0,0.00016438,2]
[361276390,1747414248989,-524.93,0.00016438,2]
[361276391,1747414248999,-455.52,0.00016438,2]
[361276392,1747414249007,-400.0,0.00016438,2]
[361276393,1747414249017,-1001.51,0.00016438,2]
[361276394,1747414249026,-400.0,0.00016438,2]
[361276395,1747414249035,-400.0,0.00016438,2]
[361276396,1747414249044,-400.0,0.00016438,2]
[361276397,1747414249053,-400.0,0.00016438,2]
[361276398,1747414249063,-400.0,0.00016438,2]
[361276399,1747414249072,-151.0,0.00016438,2]
[361276400,1747414249081,-400.0,0.00016438,2]
[361276401,1747414249091,-1306.04,0.00016438,2]
[361276402,1747414249100,-400.0,0.00016438,2]
[361276403,1747414249108,-527.75,0.00016438,2]
[361276404,1747414249118,-457.5,0.00016438,2]
[361276405,1747414249127,-151.0,0.00016438,2]
[361276406,1747414249135,-528.19,0.00016438,2]
[361276407,1747414249145,-400.0,0.00016438,2]
[361276408,1747414249154,-419.69,0.00016438,2]
[361276409,1747414249163,-400.0,0.00016438,2]
[361276410,1747414249172,-840.74,0.00016438,2]
[361276411,1747414249181,-766.31,0.00016438,2]
[361276412,1747414249190,-400.0,0.00016438,2]
[361276413,1747414249199,-400.0,0.00016438,2]
[361276414,1747414249208,-696.06,0.00016438,2]
[361276415,1747414249218,-885.14,0.00016438,2]
[361276416,1747414249227,-774.89,0.00016438,2]
[361276417,1747414249236,-691.3,0.00016438,2]
[361276418,1747414249246,-708.69,0.00016438,2]
[361276419,1747414249255,-792.93,0.00016438,2]
[361276420,1747414249264,-19310.46164238,0.00016438,2]
[361276421,1747414249860,-400.0,0.00016438,2]
[361276422,1747414249870,-511.25,0.00016438,2]
[361276423,1747414249879,-400.0,0.00016438,2]
[361276424,1747414249889,-400.0,0.00016438,2]
[361276425,1747414249898,-292.35,0.00016438,2]
[361276426,1747414249909,-107.65,0.00016438,2]
[361276427,1747414249918,-779.07,0.00016438,2]
[361276428,1747414249937,-170.58,0.00016438,2]
[361276429,1747414249946,-1680.42,0.00016438,2]
[361276430,1747414249955,-6163.43,0.00016438,2]
[361276431,1747414249964,-400.0,0.00016438,2]
[361276432,1747414249973,-1445.22,0.00016438,2]
[361276433,1747414249982,-445.55,0.00016438,2]
[361276434,1747414249991,-229.26076618,0.00016438,2]
[361276435,1747414250000,-475.51,0.00016438,2]
[361276436,1747414250008,-400.0,0.00016438,2]
[361276437,1747414250017,-709.1,0.00016438,2]
[361276438,1747414250026,-596.18,0.00016438,2]
[361276439,1747414250035,-400.0,0.00016438,2]
[361276440,1747414250044,-893.81,0.00016438,2]
[361276441,1747414250053,-400.0,0.00016438,2]
[361276442,1747414250062,-400.0,0.00016438,2]
[361276443,1747414250072,-400.0,0.00016438,2]
[361276444,1747414250081,-6811.06,0.00016438,2]
[361276445,1747414250090,-400.0,0.00016438,2]
[361276446,1747414250099,-590.03,0.00016438,2]
[361276447,1747414250109,-331.158621,0.00016438,2]
[361276448,1747414250118,-331.158621,0.00016438,2]
[361276449,1747414250127,-400.0,0.00016438,2]
[361276450,1747414250137,-331.158621,0.00016438,2]
[361276451,1747414250146,-1389.53,0.00016438,2]
[361276452,1747414250155,-331.158621,0.00016438,2]
[361276453,1747414250164,-868.76,0.00016438,2]
[361276454,1747414250174,-400.0,0.00016438,2]
[361276455,1747414250183,-1495.74,0.00016438,2]
[361276456,1747414250193,-670.52,0.00016438,2]
[361276457,1747414250202,-2953.68,0.00016438,2]
[361276458,1747414250211,-629.43,0.00016438,2]
[361276459,1747414250220,-1983.23,0.00016438,2]
[361276460,1747414250229,-331.158621,0.00016438,2]
[361276461,1747414250239,-400.0,0.00016438,2]
[361276462,1747414250248,-331.158621,0.00016438,2]
[361276463,1747414250257,-331.158621,0.00016438,2]
[361276464,1747414250266,-3212.27,0.00016438,2]
[361276465,1747414250275,-972.52,0.00016438,2]
[361276466,1747414250285,-1963.48,0.00016438,2]
[361276467,1747414250294,-331.158621,0.00016438,2]
[361276468,1747414250304,-457.8,0.00016438,2]
[361276469,1747414250314,-400.0,0.00016438,2]
[361276470,1747414250324,-579.46,0.00016438,2]
[361276471,1747414250333,-334.30897223,0.00016438,2]
[361276472,1747414250343,-996.02,0.00016438,2]
[361276473,1747414250353,-400.0,0.00016438,2]
[361276474,1747414250362,-400.0,0.00016438,2]
[361276475,1747414250372,-22584.65,0.00016438,2]
[361276476,1747414250382,-3700.8,0.00016438,2]
[361276477,1747414250392,-400.0,0.00016438,2]
[361276478,1747414250401,-13946.95,0.00016438,2]
[361276479,1747414250410,-400.0,0.00016438,2]
[361276480,1747414250419,-1347.86,0.00016438,2]
[361276481,1747414250429,-1456.46,0.00016438,2]
[361276482,1747414250439,-400.0,0.00016438,2]
[361276483,1747414250449,-797.68,0.00016438,2]
[361276484,1747414250459,-1636.37,0.00016438,2]
[361276485,1747414250468,-400.0,0.00016438,2]
[361276486,1747414250478,-2939.6,0.00016438,2]
[361276487,1747414250487,-1570.49,0.00016438,2]
[361276488,1747414250496,-571.4,0.00016438,2]
[361276489,1747414250505,-400.0,0.00016438,2]
[361276490,1747414250515,-400.0,0.00016438,2]
[361276491,1747414250525,-400.0,0.00016438,2]
[361276492,1747414250535,-400.0,0.00016438,2]
[361276493,1747414250547,-250.0,0.00016438,2]
[361276494,1747414250556,-2354.7,0.00016438,2]
[361276495,1747414250566,-400.0,0.00016438,2]
[361276496,1747414250576,-2560.14,0.00016438,2]
[361276497,1747414250586,-751.05,0.00016438,2]
[361276498,1747414250595,-151.0,0.00016438,2]
[361276499,1747414250604,-400.0,0.00016438,2]
[361276500,1747414250614,-1481.31,0.00016438,2]
[361276501,1747414250623,-207.80906,0.00016438,2]
[361276502,1747414250633,-400.0,0.00016438,2]
[361276503,1747414250643,-400.0,0.00016438,2]
[361276504,1747414250653,-400.0,0.00016438,2]
[361276505,1747414250663,-442.4,0.00016438,2]
[361276506,1747414250673,-1164.55,0.00016438,2]
[361276507,1747414250684,-538.78,0.00016438,2]
[361276508,1747414250694,-400.0,0.00016438,2]
[361276509,1747414250703,-2540.07,0.00016438,2]
[361276510,1747414250713,-2370.19943196,0.00016438,2]
[361276511,1747414250727,-2238.71056804,0.00016438,2]
[361276512,1747414250737,-400.0,0.00016438,2]
[361276513,1747414250747,-614.17,0.00016438,2]
[361276514,1747414250755,-1068.83,0.00016438,2]
[361276515,1747414250764,-175.09143842,0.00016438,2]
[361276516,1747414250773,-400.0,0.00016438,2]
[361276517,1747414250782,-1332.1611497,0.00016438,2]
[361276518,1747414250799,-466.2588503,0.00016438,2]
[361276519,1747414250808,-792.05,0.00016438,2]
[361276520,1747414250818,-534.14,0.00016438,2]
[361276521,1747414250828,-678.45,0.00016438,2]
[361276522,1747414250837,-400.0,0.00016438,2]
[361276523,1747414250847,-424.14,0.00016438,2]
[361276524,1747414250856,-400.0,0.00016438,2]
[361276525,1747414250864,-102.5294738,0.00016438,2]
[361276526,1747414250876,-2818.1505262,0.00016438,2]
[361276527,1747414250884,-400.0,0.00016438,2]
[361276528,1747414250894,-400.0,0.00016438,2]
[361276529,1747414250903,-400.0,0.00016438,2]
[361276530,1747414250911,-400.0,0.00016438,2]
[361276531,1747414250920,-2380.03,0.00016438,2]
[361276532,1747414250929,-908.32,0.00016438,2]
[361276533,1747414250938,-39.5631738,0.00016438,2]
[361276534,1747414251038,-360.4368262,0.00016438,2]
[361276535,1747414251047,-400.0,0.00016438,2]
[361276536,1747414251057,-1085.1,0.00016438,2]
[361276537,1747414251067,-400.0,0.00016438,2]
[361276538,1747414251076,-132.37630803,0.00016438,2]
[361276539,1747414251087,-1146.04369197,0.00016438,2]
[361276540,1747414251097,-400.0,0.00016438,2]
[361276541,1747414251106,-400.0,0.00016438,2]
[361276542,1747414251115,-1121.9,0.00016438,2]
[361276543,1747414251124,-2099.36,0.00016438,2]
[361276544,1747414251133,-400.0,0.00016438,2]
[361276545,1747414251142,-1621.82991157,0.00016438,2]
[361276546,1747414251154,-599.42500052,0.00016438,2]
[361276548,1747414564052,258.14138162,0.00010149,2]
[361276558,1747415263575,450.0,0.0001,2]
[361276577,1747415432026,-521.47,0.00013423,2]
[361276578,1747415432036,-200.0,0.00013561,2]
[361276579,1747415432047,-791.93,0.00013699,2]
[361276580,1747415432057,-200.0,0.00014384,2]
[361276581,1747415432067,-121.50756984,0.00014765,2]
[361276582,1747415432079,-78.49243016,0.00014765,2]
[361276583,1747415432089,-502.538175,0.00014868,2]
[361276584,1747415432099,-672.68,0.00014943,2]
[361276585,1747415432108,-200.0,0.00014987,2]
[361276586,1747415432118,-210.298042,0.00014999,2]
[361276587,1747415432127,-150.0,0.00015099,2]
[361276588,1747415432137,-161.58,0.00015193,2]
[361276589,1747415432146,-1200.0,0.00015239,2]
[361276590,1747415432156,-300.0,0.00015239,2]
[361276591,1747415432166,-1250.0,0.0001524,2]
[361276592,1747415432176,-1250.0,0.0001524,2]
[361276593,1747415432185,-150.0,0.00015284,7]
[361276594,1747415432195,-300.0,0.00015339,2]
[361276595,1747415432205,-250.0,0.0001534,2]
[361276596,1747415432214,-5763.32908704,0.0001534,2]
[361276597,1747415432226,-641.60804426,0.0001534,2]
[361276598,1747415432238,-1755.3,0.0001534,2]
[361276599,1747415432285,-481.02616996,0.0001534,2]
[361276600,1747415432296,-1434.64582225,0.0001534,2]
[361276601,1747415432307,-2205.82304066,0.0001534,2]
[361276602,1747415432319,-5172.19999998,0.0001534,2]
[361276603,1747415432330,-278.389668,0.0001534,2]
[361276604,1747415432346,-6167.67816785,0.0001534,2]
[361276605,1747415432356,-500.0,0.0001534,2]
[361276606,1747415432365,-318.57,0.0001534,2]
[361276607,1747415432375,-1000.0,0.00015447,2]
[361276608,1747415432384,-543.0513404,0.00015463,2]
[361276939,1747415438103,-1569.2786596,0.00015463,2]
[361276940,1747415438116,-4000.0,0.00015581,2]
[361276941,1747415438126,-2126.32,0.00015581,2]
[361276942,1747415438137,-520.71,0.00015586,2]
[361276943,1747415438146,-151.0,0.00015615,2]
[361276944,1747415438156,-207.4,0.00015615,2]
[361276946,1747415438166,-151.0,0.00015615,2]
[361276948,1747415438176,-599.60298507,0.00015615,2]
[361276950,1747415438185,-668.65185757,0.00015615,2]
[361276952,1747415438195,-151.0,0.00015615,2]
[361276954,1747415438205,-521.47,0.00015686,2]
[361276956,1747415438215,-428.24,0.00015686,2]
[361276958,1747415438225,-150.99,0.00015686,2]
[361276960,1747415438234,-161.58,0.00015763,2]
[361276962,1747415438244,-1200.0,0.000158,5]
[361276964,1747415438254,-2500.0,0.000159,5]
[361276966,1747415438263,-167.05,0.0001597,2]
[361276968,1747415438273,-1000.0,0.00016,2]
[361276970,1747415438282,-170.01,0.00016,2]
[361276972,1747415438291,-5240.6181465,0.00016088,2]
[361277119,1747415440202,-2534.87683248,0.00016088,2]
[361277120,1747415440214,-1260.28990898,0.00016088,2]
[361277121,1747415440225,-500.0,0.00016237,2]
[361277122,1747415440235,-345.84865992,0.00016237,2]
[361277123,1747415440245,-2924.25300589,0.00016238,2]
[361277124,1747415440257,-15590.03659411,0.00016238,2]
[361277125,1747415440267,-557.895,0.00016328,2]
[361277126,1747415440277,-161.58,0.00016333,2]
[361277127,1747415440375,-2500.0,0.00016338,2]
[361277128,1747415440385,-196.52801519,0.00016338,2]
[361277129,1747415440394,-155.45686494,0.00016338,2]
[361277130,1747415440404,-6524.79771506,0.00016338,2]
[361277131,1747415440413,-543.1277844,0.00016355,2]
[361277132,1747415440422,-3084.48,0.00016412,2]
[361277133,1747415440432,-167.89594668,0.00016428,2]
[361277134,1747415440442,-6524.79771501,0.00016429,2]
[361277135,1747415440451,-292.01,0.00016437,2]
[361277136,1747415440460,-2147.4352322,0.00016437,2]
[361277137,1747415440470,-4155.4312626,0.00016437,2]
[361277138,1747415440480,-766.901703,0.00016437,2]
[361277139,1747415440489,-296.8006691,0.00016437,2]
[361277140,1747415440498,-6077.3223449,0.00016437,2]
[361277141,1747415440507,-669.09272151,0.00016438,2]
[361277142,1747415440516,-264116.46411994,0.00016438,2]
[361277143,1747415440526,-173.797578,0.00016438,2]
[361277144,1747415440535,-178.262316,0.00016438,2]
[361277145,1747415440545,-158.19229,0.00016438,2]
[361277146,1747415440554,-159.827477,0.00016438,2]
[361277147,1747415440564,-185.059648,0.00016438,2]
[361277148,1747415440573,-185.43254231,0.00016438,2]
[361277149,1747415440583,-258.09713353,0.00016438,2]
[361277150,1747415440592,-400.0,0.00016438,2]
[361277151,1747415440601,-178.262296,0.00016438,2]
[361277152,1747415440611,-158.192291,0.00016438,2]
[361277153,1747415440620,-1497.464088,0.00016438,2]
[361277154,1747415440629,-158.899656,0.00016438,2]
[361277155,1747415440639,-527.42,0.00016438,2]
[361277156,1747415440648,-200.0,0.00016438,2]
[361277157,1747415440657,-400.0,0.00016438,2]
[361277158,1747415440666,-151.0,0.00016438,2]
[361277159,1747415440675,-400.0,0.00016438,2]
[361277160,1747415440684,-151.0,0.00016438,2]
[361277161,1747415440693,-400.0,0.00016438,2]
[361277162,1747415440703,-400.0,0.00016438,2]
[361277163,1747415440712,-172.09037928,0.00016438,2]
[361277164,1747415440722,-1000.0,0.00016438,2]
[361277165,1747415440732,-349.69634285,0.00016438,2]
[361277166,1747415440742,-400.0,0.00016438,2]
[361277167,1747415440752,-400.0,0.00016438,2]
[361277168,1747415440761,-400.0,0.00016438,2]
[361277169,1747415440770,-400.0,0.00016438,2]
[361277170,1747415440780,-404.08487792,0.00016438,2]
[361277171,1747415440789,-400.0,0.00016438,2]
[361277172,1747415440799,-400.0,0.00016438,2]
[361277173,1747415440808,-400.0,0.00016438,2]
[361277174,1747415440817,-400.0,0.00016438,2]
[361277175,1747415440827,-400.0,0.00016438,2]
[361277176,1747415440836,-400.0,0.00016438,2]
[361277177,1747415440846,-491.57,0.00016438,2]
[361277178,1747415440855,-400.0,0.00016438,2]
[361277179,1747415440866,-400.0,0.00016438,2]
[361277180,1747415440875,-551.7,0.00016438,2]
[361277181,1747415440884,-400.0,0.00016438,2]
[361277182,1747415440893,-957.24,0.00016438,2]
[361277183,1747415440903,-630.77,0.00016438,2]
[361277184,1747415440912,-400.0,0.00016438,2]
[361277185,1747415440923,-425.22822967,0.00016438,2]
[361277186,1747415440934,-400.0,0.00016438,2]
[361277187,1747415440943,-400.0,0.00016438,2]
[361277188,1747415440952,-510.56,0.00016438,2]
[361277189,1747415440961,-724.14,0.00016438,2]
[361277190,1747415440973,-400.0,0.00016438,2]
[361277191,1747415440982,-400.0,0.00016438,2]
[361277192,1747415440992,-435.86,0.00016438,2]
[361277193,1747415441002,-400.0,0.00016438,2]
[361277194,1747415441013,-400.0,0.00016438,2]
[361277195,1747415441023,-400.0,0.00016438,2]
[361277196,1747415441032,-564.29,0.00016438,2]
[361277197,1747415441041,-718.12,0.00016438,2]
[361277198,1747415441050,-400.0,0.00016438,2]
[361277199,1747415441059,-400.0,0.00016438,2]
[361277200,1747415441069,-500.0,0.00016438,2]
[361277201,1747415441078,-500.0,0.00016438,2]
[361277202,1747415441087,-400.0,0.00016438,2]
[361277203,1747415441096,-938.14,0.00016438,2]
[361277204,1747415441106,-887.21,0.00016438,2]
[361277205,1747415441116,-247.82866,0.00016438,2]
[361277206,1747415441125,-400.0,0.00016438,2]
[361277207,1747415441135,-400.0,0.00016438,2]
[361277208,1747415441144,-400.0,0.00016438,2]
[361277209,1747415441154,-151.0,0.00016438,2]
[361277210,1747415441163,-400.0,0.00016438,2]
[361277211,1747415441173,-1059.92,0.00016438,2]
[361277212,1747415441183,-151.0,0.00016438,2]
[361277213,1747415441192,-400.0,0.00016438,2]
[361277214,1747415441202,-400.0,0.00016438,2]
[361277215,1747415441215,-400.0,0.00016438,2]
[361277216,1747415441225,-400.0,0.00016438,2]
[361277217,1747415441234,-617.54,0.00016438,2]
[361277218,1747415441244,-748.76,0.00016438,2]
[361277219,1747415441253,-400.0,0.00016438,2]
[361277220,1747415441263,-707.09,0.00016438,2]
[361277221,1747415441272,-400.0,0.00016438,2]
[361277222,1747415441281,-400.0,0.00016438,2]
[361277223,1747415441291,-400.0,0.00016438,2]
[361277224,1747415441300,-400.0,0.00016438,2]
[361277225,1747415441310,-400.0,0.00016438,2]
[361277226,1747415441319,-400.0,0.00016438,2]
[361277227,1747415441328,-500.0,0.00016438,2]
[361277228,1747415441338,-300.0,0.00016438,2]
[361277229,1747415441347,-400.0,0.00016438,2]
[361277230,1747415441356,-400.0,0.00016438,2]
[361277231,1747415441366,-400.0,0.00016438,2]
[361277232,1747415441376,-400.0,0.00016438,2]
[361277233,1747415441385,-572.82,0.00016438,2]
[361277234,1747415441394,-400.0,0.00016438,2]
[361277235,1747415441404,-612.18,0.00016438,2]
[361277236,1747415441414,-1316.85,0.00016438,2]
[361277237,1747415441423,-400.0,0.00016438,2]
[361277238,1747415441433,-557.79,0.00016438,2]
[361277239,1747415441442,-400.0,0.00016438,2]
[361277240,1747415441451,-400.0,0.00016438,2]
[361277241,1747415441461,-764.52,0.00016438,2]
[361277242,1747415441470,-305.20290868,0.00016438,2]
[361277243,1747415441480,-400.0,0.00016438,2]
[361277244,1747415441490,-400.0,0.00016438,2]
[361277245,1747415441499,-400.0,0.00016438,2]
[361277246,1747415441508,-552.1,0.00016438,2]
[361277247,1747415441517,-867.23,0.00016438,2]
[361277248,1747415441527,-400.0,0.00016438,2]
[361277249,1747415441536,-989.88,0.00016438,2]
[361277250,1747415441545,-453.88,0.00016438,2]
[361277251,1747415441555,-702.05,0.00016438,2]
[361277252,1747415441564,-400.0,0.00016438,2]
[361277253,1747415441573,-400.0,0.00016438,2]
[361277254,1747415441582,-400.0,0.00016438,2]
[361277255,1747415441592,-400.0,0.00016438,2]
[361277256,1747415441602,-404.7,0.00016438,2]
[361277257,1747415441611,-400.0,0.00016438,2]
[361277258,1747415441620,-238.84541832,0.00016438,2]
[361277259,1747415441630,-400.0,0.00016438,2]
[361277260,1747415441640,-400.0,0.00016438,2]
[361277261,1747415441649,-400.0,0.00016438,2]
[361277262,1747415441659,-400.0,0.00016438,2]
[361277263,1747415441668,-190.37600845,0.00016438,2]
[361277264,1747415441677,-335.24304165,0.00016438,2]
[361277265,1747415441686,-151.0,0.00016438,2]
[361277266,1747415441695,-400.0,0.00016438,2]
[361277267,1747415441704,-400.0,0.00016438,2]
[361277268,1747415441715,-400.0,0.00016438,2]
[361277269,1747415441724,-999.62,0.00016438,2]
[361277270,1747415441734,-400.0,0.00016438,2]
[361277271,1747415441743,-946.25,0.00016438,2]
[361277272,1747415441752,-400.0,0.00016438,2]
[361277273,1747415441762,-430.51,0.00016438,2]
[361277274,1747415441771,-632.45,0.00016438,2]
[361277275,1747415441781,-400.0,0.00016438,2]
[361277276,1747415441790,-597.21,0.00016438,2]
[361277277,1747415441800,-800.38,0.00016438,2]
[361277278,1747415441809,-400.0,0.00016438,2]
[361277279,1747415441818,-400.0,0.00016438,2]
[361277280,1747415441828,-200.0,0.00016438,2]
[361277281,1747415441838,-400.0,0.00016438,2]
[361277282,1747415441847,-400.0,0.00016438,2]
[361277283,1747415441859,-400.0,0.00016438,2]
[361277284,1747415441869,-400.0,0.00016438,2]
[361277285,1747415441879,-400.0,0.00016438,2]
[361277286,1747415441889,-931.22,0.00016438,2]
[361277287,1747415441898,-659.89,0.00016438,2]
[361277288,1747415441908,-400.0,0.00016438,2]
[361277289,1747415441918,-351.7991323,0.00016438,2]
[361277290,1747415441927,-400.0,0.00016438,2]
[361277291,1747415441940,-151.0,0.00016438,2]
[361277292,1747415441949,-400.0,0.00016438,2]
[361277293,1747415441958,-151.0,0.00016438,2]
[361277294,1747415441967,-151.0,0.00016438,2]
[361277295,1747415441979,-454.2,0.00016438,2]
[361277296,1747415441989,-1025.39,0.00016438,2]
[361277297,1747415441998,-151.0,0.00016438,2]
[361277298,1747415442009,-400.0,0.00016438,2]
[361277299,1747415442020,-415.5,0.00016438,2]
[361277300,1747415442029,-400.0,0.00016438,2]
[361277301,1747415442039,-151.0,0.00016438,2]
[361277302,1747415442048,-400.0,0.00016438,2]
[361277303,1747415442058,-187.780436,0.00016438,2]
[361277304,1747415442068,-426.63,0.00016438,2]
[361277305,1747415442077,-400.0,0.00016438,2]
[361277306,1747415442087,-1430.7,0.00016438,2]
[361277307,1747415442096,-400.0,0.00016438,2]
[361277308,1747415442105,-437.23,0.00016438,2]
[361277309,1747415442115,-151.0,0.00016438,2]
[361277310,1747415442125,-247.090856,0.00016438,2]
[361277311,1747415442134,-959.18,0.00016438,2]
[361277312,1747415442144,-1674.0,0.00016438,2]
[361277313,1747415442153,-400.0,0.00016438,2]
[361277314,1747415442163,-158.155376,0.00016438,2]
[361277315,1747415442173,-242.95,0.00016438,2]
[361277316,1747415442182,-400.0,0.00016438,2]
[361277317,1747415442192,-1135.43,0.00016438,2]
[361277318,1747415442201,-403.44,0.00016438,2]
[361277319,1747415442211,-670.67,0.00016438,2]
[361277320,1747415442220,-151.0,0.00016438,2]
[361277321,1747415442230,-151.0,0.00016438,2]
[361277322,1747415442240,-400.0,0.00016438,2]
[361277323,1747415442249,-1400.37,0.00016438,2]
[361277324,1747415442258,-408.85,0.00016438,2]
[361277325,1747415442268,-1086.67,0.00016438,2]
[361277326,1747415442277,-791.09,0.00016438,2]
[361277327,1747415442286,-151.0,0.00016438,2]
[361277328,1747415442296,-151.0,0.00016438,2]
[361277329,1747415442305,-400.0,0.00016438,2]
[361277330,1747415442315,-400.0,0.00016438,2]
[361277331,1747415442324,-400.0,0.00016438,2]
[361277332,1747415442333,-400.0,0.00016438,2]
[361277333,1747415442343,-483.6,0.00016438,2]
[361277334,1747415442352,-400.0,0.00016438,2]
[361277335,1747415442362,-400.0,0.00016438,2]
[361277336,1747415442371,-546.35,0.00016438,2]
[361277337,1747415442380,-400.0,0.00016438,2]
[361277338,1747415442390,-400.0,0.00016438,2]
[361277339,1747415442399,-444.44,0.00016438,2]
[361277340,1747415442408,-400.0,0.00016438,2]
[361277341,1747415442419,-400.0,0.00016438,2]
[361277342,1747415442429,-151.0,0.00016438,2]
[361277343,1747415442438,-151.0,0.00016438,2]
[361277344,1747415442448,-400.0,0.00016438,2]
[361277345,1747415442457,-400.0,0.00016438,2]
[361277346,1747415442467,-400.0,0.00016438,2]
[361277347,1747415442476,-400.0,0.00016438,2]
[361277348,1747415442485,-400.0,0.00016438,2]
[361277349,1747415442494,-400.0,0.00016438,2]
[361277350,1747415442503,-400.0,0.00016438,2]
[361277351,1747415442513,-151.0,0.00016438,2]
[361277352,1747415442522,-400.0,0.00016438,2]
[361277353,1747415442532,-400.0,0.00016438,2]
[361277354,1747415442541,-151.0,0.00016438,2]
[361277355,1747415442551,-647.67,0.00016438,2]
[361277356,1747415442560,-400.0,0.00016438,2]
[361277357,1747415442570,-987.65,0.00016438,2]
[361277358,1747415442579,-838.81,0.00016438,2]
[361277359,1747415442589,-552.88,0.00016438,2]
[361277360,1747415442598,-1508.9,0.00016438,2]
[361277361,1747415442608,-937.3,0.00016438,2]
[361277362,1747415442618,-400.0,0.00016438,2]
[361277363,1747415442627,-151.0,0.00016438,2]
[361277364,1747415442636,-400.0,0.00016438,2]
[361277365,1747415442646,-517.51645801,0.00016438,2]
[361277366,1747415442656,-527.47,0.00016438,2]
[361277367,1747415442665,-661.22,0.00016438,2]
[361277368,1747415442674,-400.0,0.00016438,2]
[361277369,1747415442684,-541.64,0.00016438,2]
[361277370,1747415442693,-542.30688628,0.00016438,2]
[361277371,1747415442703,-400.0,0.00016438,2]
[361277372,1747415442712,-1621.07,0.00016438,2]
[361277373,1747415442721,-442.36,0.00016438,2]
[361277374,1747415442731,-400.0,0.00016438,2]
[361277375,1747415442740,-400.0,0.00016438,2]
[361277376,1747415442750,-455.11,0.00016438,2]
[361277377,1747415442760,-400.0,0.00016438,2]
[361277379,1747415442770,-400.0,0.00016438,2]
[361277381,1747415442780,-488.99,0.00016438,2]
[361277383,1747415442789,-400.0,0.00016438,2]
[361277384,1747415442798,-400.0,0.00016438,2]
[361277385,1747415442807,-400.0,0.00016438,2]
[361277386,1747415442817,-685.18,0.00016438,2]
[361277387,1747415442828,-637.97,0.00016438,2]
[361277388,1747415442838,-151.0,0.00016438,2]
[361277389,1747415442848,-400.0,0.00016438,2]
[361277392,1747415442858,-400.0,0.00016438,2]
[361277394,1747415442872,-1391.96,0.00016438,2]
[361277395,1747415442882,-400.0,0.00016438,2]
[361277396,1747415442891,-560.63,0.00016438,2]
[361277398,1747415442901,-400.0,0.00016438,2]
[361277400,1747415442911,-1768.31,0.00016438,2]
[361277402,1747415442920,-501.55736406,0.00016438,2]
[361277404,1747415442932,-151.0,0.00016438,2]
[361277405,1747415442942,-151.0,0.00016438,2]
[361277407,1747415442952,-151.0,0.00016438,2]
[361277408,1747415442961,-400.0,0.00016438,2]
[361277409,1747415442971,-400.0,0.00016438,2]
[361277410,1747415442982,-151.0,0.00016438,2]
[361277411,1747415442991,-529.09,0.00016438,2]
[361277412,1747415443000,-400.0,0.00016438,2]
[361277413,1747415443010,-400.0,0.00016438,2]
[361277414,1747415443020,-400.0,0.00016438,2]